Cogmind - Beta 17 @@@ ROGUE MODE // 2026.07.03 @ 13:26:32 Player: alice_fexa Result: Destroyed by Autobeam Turret with Autobeam Performance ------------- Evolutions (0) 0 Regions Visited (2) 400 Robots Destroyed (31) 155 Value Destroyed (731) 731 Prototype IDs (0) 0 Alien Tech Used (0) 0 Bonus (5250) 5250 TOTAL SCORE: 6536 Bonus ------- Prayed to X0-1V1 5000 Major X0-1V1 Interference 250 Cogmind --------- Core Integrity 0/200 Matter 300/300 Energy 224/250 System Corruption 0% Temperature Cool (6) Movement Walking (260) Ox2 Location -10/Subcaves Parts ------- > --- POWER (1) -------- Ion Engine > --- PROPULSION (2) --- Aluminum Leg > --- UTILITY (2) ------ Heat Sink Large Storage Unit > --- WEAPON (2) ------- Small Laser Particle Gun > --- INVENTORY (15) --- Light Ion Engine Heat Sink Disposable Heat Sink High-capacity Battery (250) Seismic Detector Targeting Computer X0-1V1's Piety Tracker Medium Laser Medium Laser Medium Laser Small Laser Datajack Peak State ------------ > --- POWER ------------ Ion Engine > --- PROPULSION ------- Aluminum Leg Aluminum Leg > --- UTILITY ---------- Improved Heat Sink Large Storage Unit > --- WEAPON ----------- Small Laser Particle Gun > --- INVENTORY -------- Ion Engine Ion Engine Aluminum Leg Aluminum Leg Heat Sink Heat Sink High-capacity Battery Seismic Detector Targeting Computer X0-1V1's Piety Tracker Medium Laser Medium Laser Medium Laser Small Laser Datajack [Rating: 12] Favorites ----------- Power Ion Engine Engine Ion Engine Propulsion Aluminum Leg Leg Aluminum Leg Utility Improved Heat Sink Device Improved Heat Sink Storage Large Storage Unit Weapon Particle Gun Energy Gun Particle Gun Ballistic Gun Light Assault Rifle Build | -11 -10 -10 ------- Run | Yrd Mat Sub Slots Evolved . | . . . Power . | . . . Propulsion . | . . . Utility . | . . . Weapon . | . . . Parts Attached 24 | 7 11 6 Power 7 | 1 4 2 Engine 7 | 1 4 2 Core . | . . . Reactor . | . . . Propulsion 6 | 2 2 2 Treads . | . . . Leg 6 | 2 2 2 Wheel . | . . . Hover . | . . . Flight . | . . . Utility 6 | 2 2 2 Device 4 | 1 1 2 Storage 2 | 1 1 . Processor . | . . . Hackware . | . . . Protection . | . . . Artifact . | . . . Weapon 5 | 2 3 . Energy Gun 4 | 1 3 . Energy Cannon . | . . . Ballistic Gun 1 | 1 . . Ballistic Cannon . | . . . Launcher . | . . . Special Weapon . | . . . Impact Weapon . | . . . Slashing Weapon . | . . . Piercing Weapon . | . . . Special Melee Weapon . | . . . Unidentified Prototypes . | . . . Parts Lost 6 | . . 6 Power 2 | . . 2 Propulsion 3 | . . 3 Utility 1 | . . 1 Weapon . | . . . Highest Loss Streak 3 | . . 3 To Critical Strikes . | . . . Average Backups 10 | 1 9 14 Power 1 | . 1 1 Propulsion 1 | . 1 1 Utility 3 | . 2 5 Weapon 3 | . 3 4 Tool/Special . | . . . Unused Backups 15 | . 5 10 Power 1 | . . 1 Propulsion 1 | . 1 . Utility 6 | . 2 4 Weapon 5 | . 1 4 Tool/Special 2 | . 1 1 Average Slot Usage (%) 99 | . 99 99 Engine 14 | . 14 14 Leg 27 | . 28 27 Device 13 | . 14 13 Storage 14 | . 14 14 Energy Gun 26 | . 25 28 Ballistic Gun 1 | . 1 . Peak Build Rating 12 | 7 12 12 Average Rating 9 | 5 9 9 On Entrance 6 | . 7 12 Avg Prop Armor Cover (%) . | . . . Naked Turns . | . . . Heaviest Build 31 | 13 31 30 Greatest Support 20 | 20 20 20 Greatest Overweight (x) 2 | . 1 2 Average Overweight (x) . | . . 1 Largest Inventory Capacity 15 | 8 15 15 Average Capacity 11 | 7 10 15 Most Carried 15 | 2 15 15 Average Carried 10 | 1 9 14 Final Capacity 15 | 8 15 15 Final Carried 15 | 2 15 12 Class Distribution -------------------- 58% | Scavenger-Mutant 41% | Mutant Dominant Class ---------------- Mutant | -10/Materials Scavenger-Mutant | -10/Subcaves Resources | -11 -10 -10 ----------- Run | Yrd Mat Sub Matter Collected 474 | 275 129 70 Remotely . | . . . Salvage Created 929 | 85 685 159 Parts 37 | 3 29 5 Haulers Intercepted 1 | . 1 . Recyclers Shooed . | . . . Parts Field Recycled . | . . . Retrieved Matter . | . . . Parts Self-Destructed 10 | . . 10 Prevented . | . . . Parts Restored . | . . . Kills | -11 -10 -10 ------- Run | Yrd Mat Sub Combat Hostiles Destroyed 21 | . 14 7 Guns 18 | . 11 7 Classes Destroyed 10 | 2 5 3 Worker 1 | . 1 . Tunneler 3 | 1 2 . Hauler 1 | . 1 . Recycler 1 | 1 . . Operator 1 | . 1 . Watcher 3 | . 3 . Swarmer 5 | . . 5 Grunt 14 | . 14 . Sentry 1 | . . 1 Subdweller 1 | . . 1 Best Kill Streak 3 | 2 3 3 Combat Bots Only 3 | . 3 3 Max Kills in Single Turn 1 | 1 1 1 Gunslinging . | . . . Exploded . | . . . Melee . | . . . Uniques/NPCs Destroyed . | . . . Combat | -11 -10 -10 -------- Run | Yrd Mat Sub Hostile Shots Fired 141 | . 66 75 Missed 42 | . 22 20 Hits 99 | . 44 55 Projectile 99 | . 44 55 Critical Strikes 1 | . . 1 Damage Taken 1061 | . 530 531 Core 253 | . 166 87 Absorbed by Shields . | . . . Regen/Repaired (Parts) 65 | . 65 . Core Remaining (%) 100 | 100 . . Volleys Fired 106 | 5 76 25 Largest 2 | 2 2 2 Hottest 115 | 60 115 105 Shots Fired 211 | 10 151 50 Gun 211 | 10 151 50 Cannon . | . . . Launcher . | . . . Special . | . . . Kinetic 14 | 5 9 . Thermal 197 | 5 142 50 Explosive . | . . . Electromagnetic . | . . . Robot Hit Streak 12 | 7 12 8 Robot Miss Streak 5 | 1 4 5 Penetration Max . | . . . Secondary Targets 2 | . 2 . Max Gunslinging Chain 1 | . 1 . Shots Hit Robots 134 | 8 99 27 Core Hits 51 | 4 37 10 Critical Kills . | . . . Critical Parts Destroyed . | . . . Critical Strikes 7 | . 7 . Burn 7 | . 7 . Melee Attacks . | . . . Impact . | . . . Slashing . | . . . Piercing . | . . . Sneak Attacks . | . . . Combat Hostiles . | . . . Follow-up Attacks . | . . . Damage Inflicted 1754 | 74 1336 344 Guns 1754 | 74 1336 344 Cannons . | . . . Explosions . | . . . Melee . | . . . Ramming . | . . . Kinetic 70 | 29 41 . Thermal 1684 | 45 1295 344 Explosive . | . . . Electromagnetic . | . . . Impact . | . . . Slashing . | . . . Piercing . | . . . Highest Corruption . | . . . Average Corruption . | . . . Corruption Purged . | . . . Corruption Blocked . | . . . Overload Shots . | . . . Overflow Damage . | . . . Projectiles . | . . . Explosions . | . . . Melee . | . . . Knockbacks . | . . . Impact . | . . . Kinetic . | . . . Secondary . | . . . Self-Inflicted Damage . | . . . Shots . | . . . Rammed . | . . . Targets Rammed . | . . . Kicked . | . . . Crushed . | . . . Highest Temperature 192 | 20 192 . Average Temperature 41 | 15 42 . Received Heat Transfer 372 | . 291 81 Siege Activations . | . . . Martial Activations . | . . . Shielding Activations . | . . . Robots Disrupted . | . . . Combat Hostiles . | . . . Robots Corrupted . | . . . Combat Hostiles . | . . . Parts Fried . | . . . Impact Corruptions . | . . . Robots Melted 3 | . 3 . Combat Hostiles 3 | . 3 . Parts Melted 8 | . 7 1 Heat Transferred 4724 | 100 3829 795 Parts Sabotaged . | . . . Parts Stolen . | . . . Parts Stripped . | . . . Power Chain Reactions . | . . . Alert | -11 -10 -10 ------- Run | Yrd Mat Sub Maximum Alert Level . | . . . Low Security (%) 100 | 100 100 . Level 1 . | . . . Level 2 . | . . . Level 3 . | . . . Level 4 . | . . . Level 5 . | . . . High Security . | . . . Max Security . | . . . Peak Influence 106 | 10 106 . Initial . | . . . Average 28 | 1 30 . Influence Increases 603 | 10 458 135 Destroy 0b10 Robot/C 400 | . 280 120 Destroy 0b10 Robot/NC 50 | 10 40 . Destroy Leader 78 | . 78 . Successful Hack 12 | . 12 . Destroy Structure 3 | . 3 . Lose Combat Pursuer 60 | . 45 15 Influence Decreases 582 | 10 406 166 Entered New Map 26 | . . 26 Time Decay 496 | 10 406 80 Lost Part 60 | . . 60 Squads Dispatched 5 | . 5 . Investigation 2 | . 2 . Extermination . | . . . Reinforcement 3 | . 3 . Assault . | . . . Garrison . | . . . Intercept . | . . . Searches Triggered . | . . . Construction Impeded . | . . . Haulers Reinforced . | . . . Active Scanning Responses . | . . . Cargo Convoy Interrupts . | . . . Stealth | -11 -10 -10 --------- Run | Yrd Mat Sub Distress Signals 2 | . 2 . Communications Jammed . | . . . Distress Signals . | . . . Times Spotted 34 | . 23 11 Peak Tracking Total 3 | . 3 3 Tactical Retreats 4 | . 3 1 Traps | -11 -10 -10 ------- Run | Yrd Mat Sub Traps Triggered 1 | . 1 . Indirectly . | . . . Trap Hack Attempts . | . . . Triggered . | . . . Disarmed . | . . . Reprogrammed . | . . . Reused . | . . . Traps Extracted . | . . . Installed . | . . . Triggered . | . . . Machines | -11 -10 -10 ---------- Run | Yrd Mat Sub Machines Disabled . | . . . Max in Single Turn . | . . . Machines Repaired . | . . . Machines Dismantled . | . . . Machines Sabotaged . | . . . Overloaded Fab Kills . | . . . Hacking | -11 -10 -10 --------- Run | Yrd Mat Sub Machines Accessed 8 | . 8 . Terminals 6 | . 6 . Fabricators . | . . . Repair Stations 1 | . 1 . Recycling Units 1 | . 1 . Scanalyzers . | . . . Garrison Access . | . . . Total Hacks 18 | . 18 . Successful 9 | . 9 . Failed 9 | . 9 . Catastrophic 1 | . 1 . Database Lockouts . | . . . Manual 12 | . 12 . Terminals 14 | . 14 . Fabricators . | . . . Repair Stations 2 | . 2 . Recycling Units 2 | . 2 . Scanalyzers . | . . . Garrison Access . | . . . Terminal Hacks . | . . . Fabricator Hacks . | . . . Repair Station Hacks 2 | . 2 . Scan Component 1 | . 1 . Repair 1 | . 1 . Recycling Unit Hacks 1 | . 1 . Retrieve Components 1 | . 1 . Scanalyzer . | . . . Garrison Access Hacks . | . . . Unauthorized Hacks 6 | . 6 . Terminals 6 | . 6 . Botnet 2 | . 2 . Skim 4 | . 4 . Fabricators . | . . . Repair Stations . | . . . Recycling Units . | . . . Scanalyzers . | . . . Garrison Access . | . . . Data Cores Recovered . | . . . Used . | . . . Hacking Detections 8 | . 8 . Full Trace Events . | . . . Feedback Events . | . . . Feedback Blocked . | . . . Robot Schematics Acquired . | . . . Robots Built . | . . . Authchips . | . . . Time . | . . . Total Robot Build Rating . | . . . Part Schematics Acquired . | . . . Parts Built . | . . . Authchips . | . . . Time . | . . . Total Part Build Rating . | . . . Part Studies Acquired . | . . . Parts Repaired 1 | . 1 . Time 32 | . 32 . Parts Recycled . | . . . Recycled Matter . | . . . Retrieved Matter . | . . . Retrieved Components 7 | . 7 . Parts Scanalyzed . | . . . Part Schematics Acquired . | . . . Parts Damaged . | . . . Bothacking | -11 -10 -10 ------------ Run | Yrd Mat Sub Used RIF Installer . | . . . Robots Hacked . | . . . Non-combat . | . . . Combat . | . . . Robot Hacks Applied . | . . . Relay Couplers Released . | . . . Fabnet Peak Effective % . | . . . Robots Rewired . | . . . Allies Hacked . | . . . Hacks Repelled . | . . . Allies | -11 -10 -10 -------- Run | Yrd Mat Sub Total Allies . | . . . Largest Group . | . . . Highest-Rated Group . | . . . Highest-Rated Ally . | . . . Total Orders . | . . . Ally Attacks . | . . . Total Damage . | . . . Kills . | . . . Allies Corrupted . | . . . Allies Melted . | . . . X0-1V1 Amusement Gains 56 | . 6 50 Good Acts 2 | . . 2 Bad Acts 2 | . . 2 Intel | -11 -10 -10 ------- Run | Yrd Mat Sub Active Infowar (turns) 621 | 40 172 409 Seismic 621 | 40 172 409 Robot Analysis Total . | . . . Derelict Logs Recovered . | . . . Drone Launches . | . . . Drone Recoveries . | . . . Exploration | -11 -10 -10 ------------- Run | Yrd Mat Sub Turns Passed 2048 | 93 1436 519 Spaces Moved 999 | 59 729 211 Core 7 | 7 . . Treads . | . . . Legs 992 | 52 729 211 Wheels . | . . . Hover . | . . . Flight . | . . . Fastest Speed 50 | 50 120 190 Average Speed 149 | 111 140 190 Slowest Speed 260 | 120 190 260 Overloaded Moves . | . . . Propulsion Burnouts . | . . . Robots Hopped . | . . . Potential Cave-ins . | . . . Cave-ins Triggered . | . . . Exploration Rate (%) 40 | 5 98 17 Regions Visited 2 Branch Regions 1 Pre-discovered Areas 1 | . . 1 Known Exits Taken . | . . . Unknown Exits Taken 2 | 1 1 . Scrap Searched . | . . . Spaces Dug . | . . . Terrain Destroyed . | . . . Melee . | . . . Projectile . | . . . AOE . | . . . Terrain Rammed . | . . . Walls Destroyed . | . . . Machines Disabled . | . . . Actions | -11 -10 -10 --------- Run | Yrd Mat Sub Total 1359 | 73 1008 278 Wait 182 | 1 148 33 Move 997 | 58 728 211 Hop . | . . . Pick Up 27 | 2 23 2 Fast Attach 10 | 7 3 . Attach 5 | . . 5 Detach . | . . . Swap 12 | . 10 2 Drop 20 | . 20 . Fire 106 | 5 76 25 Melee . | . . . Ram . | . . . Kick . | . . . Crush . | . . . Escape Stasis . | . . . Rewire . | . . . Trap . | . . . Miscellaneous . | . . . Route ------- -11/Scrapyard -10/Materials (discovered 5 exits: [*Mat x3] / [*Min] / [*Sub]) -10/Subcaves History --------- Turn | Location | Event 13 | -11/Scrapyard | Discovered new exit (range 16) 94 | -11/Scrapyard | Entered Materials 328 | -10/Materials | Build established: Mutant 484 | -10/Materials | Discovered new exit (range 16) 665 | -10/Materials | Discovered new exit (range 11) 794 | -10/Materials | Derelicts attacked the area 860 | -10/Materials | Discovered new exit (range 16) 1022 | -10/Materials | Discovered new exit (range 16) 1043 | -10/Materials | Core integrity fell below 50% 1132 | -10/Materials | Build established: Scavenger-Mutant 1470 | -10/Materials | Repaired Particle Gun 1510 | -10/Materials | Discovered new exit (range 9) 1525 | -10/Materials | Prayed at D.C.S.S. Altar Unit 1530 | -10/Materials | Entered Subcaves 1531 | -10/Subcaves | Approached by a straggling Scientist 1660 | -10/Subcaves | Learned location of Zion (-6) 1660 | -10/Subcaves | Met a Zionite searching for "candidates" 1811 | -10/Subcaves | Melee accuracy permanently improved by X0-1V1 (+5%; -50 max core) 1880 | -10/Subcaves | Shifting Twisted Machinery released Mak. Light Armor Plating 1891 | -10/Subcaves | X0-1V1 sent hostile S-10 Pest (x3) 1978 | -10/Subcaves | Lost 3 parts (1p1n1u) 2011 | -10/Subcaves | Core integrity fell below 20% 2049 | -10/Subcaves | Destroyed by Autobeam Turret with Autobeam Last Messages --------------- 01947_ Imp. Heat Sink destroyed. 01950_ Sub. Machine Gun melted. 01950_ UC-RGV(R) destroyed. 01956_ Acquired 30 matter. 01958_ Subatomizers dissect the Tech Extrapolator. 01964_ Acquired Lgt. Ion Engine. 01973_ Subatomizers dissect the Tech Extrapolator. 01974_ Acquired Disposable Heat Sink. 01984_ Subatomizers dissect the Sub. Power Source. 01994_ S-10 Pest destroyed. 02004_ Aluminum Leg destroyed. 02006_ S-10 Pest destroyed. 02010_ Lgt. Assault Rifle fries itself beyond repair. 02010_ Ion Engine destroyed. 02015_ Y-45 Defender destroyed. 02017_ Flight Unit fries itself beyond repair. 02020_ Acquired 20 matter. 02027_ Subatomizers dissect the Sub. Power Source. 02046_ Aluminum Leg destroyed. 02049_ X0-1V1 snickers! Map ----- +----------------------------------------------------+ | ?????????????????????????????????????????????????? | | ?????????????????????????????????????????????????? | | ?????????????????????????????????????????????????? | | ?????????????????????????????????????????????????? | | ?????????????????????????????????????????????????? | | ?????????????????????????????????????????????????? | | ?????????????????????????????????????????????????? | | ???????????## ???????????????????????????????????? | | ?????????# ????????????????????????????????????? | | ???????? ?????????????????????????????????????? | | ??????? ??????????????? ??????????????????????? | | ??????? ???????????????" " ???????????????????? | | ??????? #???????????????t t ????????????????????? | | ??????# ##?????????????? ????????????????????? | | ?????? #?????????????? ????????????????????? | | ??#### #?????????????? ????????????????????? | | ### ##??????????????s #????????????????????? | | ##????????????#% #????????????????????? | | #????##??????# #???????#????????????? | | ## #???# ##?????# #?????? #????????????? | | ##??????? ##????# #???? #????????????? | | #???????? ##???# #??? ?????????????? | | ## #????????# ##??# ### ???????????????? | | ### #???###### #??# # ##????????????????? | | ### ##?## #???# ## ?????????? | | #?# ### #???##@ ????????? | | ##?# #???### [&## #???????????? | | ##??## ##?## &%## #?????????????? | | #????## % %= ### !* #??????????????? | | #?????###### % % #??????????????? | | ???????????## ! % % ## #?????????????? | | ????????????# ### ## #?# #?????????????? | | ????????????### #?###### #?# ##?????????????? | | ??????????????# #??????# #?# #??????????????? | | ?????????????? ??????# ##?? #??????????????? | | ?????????????? ?????# ###???? #??????????????? | | ?????????????# ????###???????"#??????????????? | | ?????????????# "###?????????????????????????????? | | ?????????????# #???????????????????????????????? | | ?????????????## ???????????????????????????????? | | ??????????????##!"???????????????????????????????? | | ????????????????##???????????????????????????????? | | ?????????????????????????????????????????????????? | | ?????????????????????????????????????????????????? | | ?????????????????????????????????????????????????? | | ?????????????????????????????????????????????????? | | ?????????????????????????????????????????????????? | | ?????????????????????????????????????????????????? | | ?????????????????????????????????????????????????? | | ?????????????????????????????????????????????????? | +----------------------------------------------------+ Best States ------------- Heat Dissipation 39 Energy Generation 10 Energy Capacity 250 Matter Stores 300 Matter Capacity 300 Sight Range 16 Terrain Scan Density 10 Evasion (%) 55 Item Schematics ----------------- None Robot Schematics ------------------ None Fabricated ------------ Nothing Repaired ---------- Particle Gun | 13% | -10/Materials Studied --------- None Alien Tech Used ----------------- None Achievements -------------- None Challenges ------------ None Game ------ Seed SlugMakeshiftProjector Manual? 0 Play Time 00:10:21 Cumulative 1678.4 hours Start 2026.07.03 @ 13:18:17 End 2026.07.03 @ 13:26:32 Sessions 1 Manual Loads 0 Difficulty Rogue Special Mode None Game No. 1193 Rogue 1153 Adventurer 40 Explorer 0 Win Type - Total 220 Types 104/11/74/2/2/4/16/2/1/4 Lore% 97 Gallery% 96 Achievement% 88 Wizard Run 0 Options --------- Layout 0 ASCII 0 Keyboard 0 Movement Numpad Keybinds 0 Fullscreen 0 Font 20/Terminus Map View 76x50 Zoom Use 0% Tactical HUD 1 Map Filters NONE Filters NONE Steam 1 RUN: dd1f45e4-47d3-450c-8dd4-62db802904e4